[Event "1st Rapid Chess Tournament Château Montaiguillon"]
[Site "Montagne - Saint Emilion, France"]
[Date "2019.09.08"]
[Round "6.4"]
[White "Daulyte-Cornette, Deimante"]
[Black "Saada, Julien"]
[Result "0-1"]
[TimeControl "12' + 3''"]
[WhiteElo "2412"]
[BlackElo "2258"]

1. e4 {[%clk 00:12:03]} {[%emt 00:00:01]} c6 {[%clk 00:12:05]} {[%emt
00:00:02]} 2. d4 {[%clk 00:12:02]} {[%emt 00:00:05]} d5 {[%clk 00:12:06]} 3. e5
{[%clk 00:11:56]} {[%emt 00:00:09]} Bf5 {[%clk 00:12:07]} {[%emt 00:00:02]} 4.
h4 {[%clk 00:11:27]} {[%emt 00:00:33]} h5 {[%clk 00:12:06]} {[%emt 00:00:03]} 5.
Bd3 {[%clk 00:11:23]} {[%emt 00:00:07]} Bxd3 6. Qxd3 {[%clk 00:11:25]} e6
{[%clk 00:12:08]} {[%emt 00:00:01]} 7. Bg5 {[%clk 00:11:22]} {[%emt 00:00:07]}
Be7 {[%clk 00:12:09]} {[%emt 00:00:02]} 8. Nf3 {[%clk 00:11:09]} {[%emt
00:00:16]} Nh6 {[%clk 00:12:10]} {[%emt 00:00:02]} 9. c4 {[%clk 00:10:47]}
{[%emt 00:00:25]} dxc4 {[%clk 00:11:29]} {[%emt 00:00:43]} 10. Qxc4 {[%clk
00:10:49]} {[%emt 00:00:03]} Nf5 {[%clk 00:11:26]} {[%emt 00:00:07]} 11. Bxe7
{[%clk 00:10:08]} {[%emt 00:00:42]} Qxe7 {[%clk 00:11:17]} {[%emt 00:00:12]} 12.
Nc3 {[%clk 00:10:07]} {[%emt 00:00:06]} Nd7 {[%clk 00:11:11]} {[%emt 00:00:07]}
13. g3 {[%clk 00:09:59]} {[%emt 00:00:13]} Nb6 {[%clk 00:11:07]} {[%emt
00:00:07]} 14. Qb3 {[%clk 00:09:58]} {[%emt 00:00:03]} Rd8 {[%clk 00:11:02]}
{[%emt 00:00:08]} 15. Rd1 {[%clk 00:09:57]} {[%emt 00:00:04]} Nd5 {[%clk
00:10:07]} {[%emt 00:00:58]} 16. O-O {[%clk 00:09:35]} {[%emt 00:00:26]} O-O
{[%clk 00:09:54]} {[%emt 00:00:15]} 17. a3 {[%clk 00:09:29]} {[%emt 00:00:10]}
Rd7 {[%clk 00:09:31]} {[%emt 00:00:26]} 18. Ne4 {[%clk 00:09:25]} {[%emt
00:00:06]} b6 {[%clk 00:09:32]} {[%emt 00:00:02]} 19. Rc1 {[%clk 00:08:25]}
{[%emt 00:01:04]} Rc8 {[%clk 00:09:32]} {[%emt 00:00:02]} 20. Qa4 {[%clk
00:08:06]} {[%emt 00:00:22]} Rdc7 {[%clk 00:09:12]} {[%emt 00:00:22]} 21. b4
{[%clk 00:08:06]} {[%emt 00:00:04]} Qd7 {[%clk 00:08:44]} {[%emt 00:00:30]} 22.
Qd1 {[%clk 00:07:53]} {[%emt 00:00:16]} Nde7 {[%clk 00:08:09]} {[%emt
00:00:38]} 23. Rc2 {[%clk 00:05:48]} {[%emt 00:02:08]} Rd8 {[%clk 00:07:59]}
{[%emt 00:00:14]} 24. Rd2 {[%clk 00:05:48]} {[%emt 00:00:03]} Nd5 {[%clk
00:06:27]} {[%emt 00:01:34]} 25. Nfg5 {[%clk 00:05:44]} {[%emt 00:00:07]} g6
{[%clk 00:06:24]} {[%emt 00:00:07]} 26. Rd3 {[%clk 00:03:16]} {[%emt 00:02:31]}
Qe7 {[%clk 00:06:19]} {[%emt 00:00:08]} 27. Qd2 {[%clk 00:02:42]} {[%emt
00:00:37]} Kg7 {[%clk 00:05:58]} {[%emt 00:00:23]} 28. Rc1 {[%clk 00:02:30]}
{[%emt 00:00:14]} Rdd7 {[%clk 00:04:19]} {[%emt 00:01:42]} 29. Qd1 {[%clk
00:02:18]} {[%emt 00:00:15]} Qd8 {[%clk 00:04:10]} {[%emt 00:00:12]} 30. Qe1
{[%clk 00:01:04]} {[%emt 00:01:17]} Nde7 {[%clk 00:03:57]} {[%emt 00:00:16]} 31.
Rcd1 {[%clk 00:00:20]} {[%emt 00:00:47]} Nxd4 {[%clk 00:03:39]} {[%emt
00:00:21]} 32. Nd6 {[%clk 00:00:16]} {[%emt 00:00:07]} Nef5 {[%clk 00:03:33]}
{[%emt 00:00:09]} 33. Rxd4 {[%clk 00:00:12]} {[%emt 00:00:06]} Nxd4 {[%clk
00:03:28]} {[%emt 00:00:08]} 34. Rxd4 {[%clk 00:00:15]} c5 {[%clk 00:03:25]}
{[%emt 00:00:06]} 35. bxc5 {[%clk 00:00:16]} {[%emt 00:00:02]} bxc5 {[%clk
00:03:15]} {[%emt 00:00:12]} 36. Rf4 {[%clk 00:00:16]} {[%emt 00:00:03]} c4
{[%clk 00:03:05]} {[%emt 00:00:13]} 37. Rxf7+ {[%clk 00:00:15]} {[%emt
00:00:03]} Kg8 {[%clk 00:02:46]} {[%emt 00:00:23]} 38. Nxe6 {[%clk 00:00:13]}
{[%emt 00:00:05]} Qb8 {[%clk 00:02:31]} {[%emt 00:00:18]} 39. Rf8+ {[%clk
00:00:12]} {[%emt 00:00:04]} Qxf8 {[%clk 00:02:32]} {[%emt 00:00:02]} 40. Nxf8
{[%clk 00:00:14]} {[%emt 00:00:01]} Kxf8 {[%clk 00:02:31]} {[%emt 00:00:05]} 41.
Qc3 {[%clk 00:00:14]} {[%emt 00:00:03]} Rc5 {[%clk 00:02:20]} {[%emt 00:00:14]}
42. f4 {[%clk 00:00:13]} {[%emt 00:00:04]} Rdc7 {[%clk 00:02:01]} {[%emt
00:00:22]} 43. e6 {[%clk 00:00:13]} {[%emt 00:00:03]} Ke7 {[%clk 00:01:59]}
{[%emt 00:00:05]} 44. Ne4 {[%clk 00:00:14]} {[%emt 00:00:02]} Rf5 {[%clk
00:01:33]} {[%emt 00:00:29]} 45. Qg7+ {[%clk 00:00:09]} {[%emt 00:00:07]} Kd8
{[%clk 00:01:35]} {[%emt 00:00:01]} 46. Qxc7+ {[%clk 00:00:06]} {[%emt
00:00:06]} Kxc7 {[%clk 00:01:31]} {[%emt 00:00:08]} 47. e7 {[%clk 00:00:06]}
{[%emt 00:00:03]} Kd7 {[%clk 00:01:24]} {[%emt 00:00:09]} 48. e8=Q+ {[%clk
00:00:08]} {[%emt 00:00:02]} Kxe8 {[%emt 00:00:02]} 49. Nd6+ {[%clk 00:00:10]}
Kd7 {[%clk 00:01:28]} {[%emt 00:00:01]} 50. Nxf5 {[%clk 00:00:13]} gxf5 {[%clk
00:01:30]} {[%emt 00:00:01]} 51. Kf2 {[%clk 00:00:15]} Kc6 {[%clk 00:01:32]}
{[%emt 00:00:01]} 52. Ke3 {[%clk 00:00:16]} {[%emt 00:00:02]} Kd5 {[%clk
00:01:33]} {[%emt 00:00:02]} 53. Kd2 {[%clk 00:00:18]} {[%emt 00:00:01]} Kd4
{[%clk 00:01:35]} {[%emt 00:00:01]} 54. Kc2 {[%clk 00:00:21]} a5 {[%clk
00:01:33]} {[%emt 00:00:05]} 0-1

[Event "1st Rapid Chess Tournament Château Montaiguillon"]
[Site "Montagne - Saint Emilion, France"]
[Date "2019.09.08"]
[Round "6.1"]
[White "Fressinet, Laurent"]
[Black "Moussard, Jules"]
[Result "1/2-1/2"]
[TimeControl "12' + 3''"]
[WhiteElo "2625"]
[BlackElo "2576"]

1. d4 {[%clk 00:12:03]} {[%emt 00:00:02]} f5 {[%clk 00:12:02]} {[%emt
00:00:04]} 2. Nc3 {[%clk 00:12:04]} {[%emt 00:00:02]} Nf6 {[%clk 00:11:51]}
{[%emt 00:00:14]} 3. Bg5 {[%clk 00:12:03]} {[%emt 00:00:03]} d5 {[%clk
00:11:44]} {[%emt 00:00:10]} 4. e3 {[%clk 00:12:04]} {[%emt 00:00:03]} e6
{[%clk 00:11:36]} {[%emt 00:00:10]} 5. Nf3 {[%clk 00:12:04]} {[%emt 00:00:03]}
a6 {[%clk 00:11:28]} {[%emt 00:00:11]} 6. Bd3 {[%clk 00:11:08]} {[%emt
00:00:59]} c5 {[%clk 00:11:27]} {[%emt 00:00:04]} 7. O-O {[%clk 00:11:08]}
{[%emt 00:00:02]} Nc6 {[%clk 00:11:19]} {[%emt 00:00:12]} 8. Ne5 {[%clk
00:10:53]} {[%emt 00:00:18]} Be7 {[%clk 00:11:16]} {[%emt 00:00:07]} 9. Nxc6
{[%clk 00:10:35]} {[%emt 00:00:20]} bxc6 {[%clk 00:11:18]} {[%emt 00:00:02]} 10.
Na4 {[%clk 00:10:33]} {[%emt 00:00:05]} Nd7 {[%clk 00:10:04]} {[%emt 00:01:17]}
11. Bxe7 {[%clk 00:09:26]} {[%emt 00:01:10]} Qxe7 {[%clk 00:10:05]} {[%emt
00:00:02]} 12. Qh5+ {[%clk 00:09:18]} {[%emt 00:00:11]} g6 {[%clk 00:09:11]}
{[%emt 00:00:58]} 13. Qh6 {[%clk 00:09:19]} Kf7 {[%clk 00:07:52]} {[%emt
00:01:22]} 14. c4 {[%clk 00:08:14]} {[%emt 00:01:08]} a5 {[%clk 00:07:29]}
{[%emt 00:00:26]} 15. cxd5 {[%clk 00:07:53]} {[%emt 00:00:24]} cxd5 {[%clk
00:07:29]} {[%emt 00:00:04]} 16. Nxc5 {[%clk 00:07:32]} {[%emt 00:00:23]} Nxc5
{[%clk 00:07:28]} {[%emt 00:00:04]} 17. dxc5 {[%clk 00:07:34]} {[%emt
00:00:01]} Qxc5 {[%clk 00:05:27]} {[%emt 00:02:04]} 18. Rac1 {[%clk 00:07:34]}
{[%emt 00:00:02]} Qd6 {[%clk 00:05:08]} {[%emt 00:00:22]} 19. Rc3 {[%clk
00:06:44]} {[%emt 00:00:53]} Bd7 {[%clk 00:05:07]} {[%emt 00:00:05]} 20. Rfc1
{[%clk 00:06:45]} {[%emt 00:00:01]} Ra7 {[%clk 00:03:51]} {[%emt 00:01:19]} 21.
h4 {[%clk 00:06:46]} {[%emt 00:00:02]} Qe5 {[%clk 00:02:20]} {[%emt 00:01:34]}
22. b3 {[%clk 00:06:10]} {[%emt 00:00:38]} Ke7 {[%clk 00:02:18]} {[%emt
00:00:05]} 23. Qg5+ {[%clk 00:05:41]} {[%emt 00:00:32]} Kf7 {[%clk 00:02:19]}
{[%emt 00:00:02]} 24. Qh6 {[%clk 00:05:24]} {[%emt 00:00:19]} Ke7 {[%clk
00:02:21]} 25. Qg5+ {[%clk 00:05:12]} {[%emt 00:00:17]} Kf7 {[%clk 00:02:24]}
26. Qh6 {[%clk 00:05:13]} Ke7 {[%clk 00:12:03]} {[%emt 00:00:01]} 1/2-1/2

[Event "1st Rapid Chess Tournament Château Montaiguillon"]
[Site "Montagne - Saint Emilion, France"]
[Date "2019.09.08"]
[Round "6.5"]
[White "Salles, Louis"]
[Black "Favarel, Julien"]
[Result "1-0"]
[TimeControl "12' + 3''"]
[WhiteElo "2248"]
[BlackElo "2331"]

1. e4 {[%clk 00:12:03]} {[%emt 00:00:03]} e5 {[%clk 00:12:05]} {[%emt
00:00:01]} 2. Nf3 {[%clk 00:12:04]} {[%emt 00:00:03]} Nc6 {[%clk 00:12:06]} 3.
d4 {[%clk 00:12:05]} {[%emt 00:00:02]} exd4 {[%clk 00:12:06]} {[%emt 00:00:04]}
4. Nxd4 {[%clk 00:12:07]} {[%emt 00:00:01]} Nf6 {[%clk 00:12:07]} {[%emt
00:00:01]} 5. Nxc6 {[%clk 00:12:08]} {[%emt 00:00:02]} bxc6 {[%clk 00:12:09]}
{[%emt 00:00:03]} 6. e5 {[%clk 00:12:10]} Qe7 {[%clk 00:12:09]} {[%emt
00:00:03]} 7. Qe2 {[%clk 00:12:12]} {[%emt 00:00:01]} Nd5 {[%clk 00:12:09]}
{[%emt 00:00:03]} 8. c4 {[%clk 00:12:13]} {[%emt 00:00:02]} Nb6 {[%clk
00:12:04]} {[%emt 00:00:08]} 9. Nc3 {[%clk 00:12:13]} {[%emt 00:00:03]} Qe6
{[%clk 00:11:58]} {[%emt 00:00:09]} 10. Qe4 {[%clk 00:12:04]} {[%emt 00:00:12]}
d5 {[%clk 00:11:57]} {[%emt 00:00:04]} 11. exd6 {[%clk 00:11:59]} {[%emt
00:00:07]} Qxe4+ {[%clk 00:11:59]} 12. Nxe4 {[%clk 00:12:00]} {[%emt 00:00:01]}
cxd6 {[%clk 00:12:01]} {[%emt 00:00:02]} 13. Be2 {[%clk 00:11:28]} {[%emt
00:00:36]} Bf5 {[%clk 00:11:10]} {[%emt 00:00:53]} 14. Nc3 {[%clk 00:11:10]}
{[%emt 00:00:20]} Be6 {[%clk 00:09:28]} {[%emt 00:01:46]} 15. b3 {[%clk
00:11:07]} {[%emt 00:00:06]} d5 {[%clk 00:08:27]} {[%emt 00:01:04]} 16. cxd5
{[%clk 00:11:05]} {[%emt 00:00:05]} Bb4 {[%clk 00:08:05]} {[%emt 00:00:25]} 17.
Bd2 {[%clk 00:10:56]} {[%emt 00:00:11]} Nxd5 {[%clk 00:08:03]} {[%emt
00:00:05]} 18. Nxd5 {[%clk 00:10:43]} {[%emt 00:00:17]} Bxd2+ {[%clk 00:08:05]}
{[%emt 00:00:02]} 19. Kxd2 {[%emt 00:00:05]} Bxd5 {[%clk 00:08:03]} {[%emt
00:00:02]} 20. Rhe1 {[%clk 00:10:37]} {[%emt 00:00:10]} O-O {[%clk 00:08:01]}
{[%emt 00:00:05]} 21. Bf1 {[%clk 00:10:34]} {[%emt 00:00:06]} a5 {[%clk
00:08:03]} {[%emt 00:00:02]} 22. Kc3 {[%clk 00:09:30]} {[%emt 00:01:07]} g6
{[%clk 00:07:32]} {[%emt 00:00:34]} 23. f3 {[%clk 00:09:10]} {[%emt 00:00:23]}
Rfd8 {[%clk 00:04:47]} {[%emt 00:02:48]} 24. a3 {[%clk 00:05:59]} {[%emt
00:03:14]} Rab8 {[%clk 00:03:59]} {[%emt 00:00:51]} 25. Rab1 {[%clk 00:06:00]}
{[%emt 00:00:01]} Rd7 {[%clk 00:03:57]} {[%emt 00:00:06]} 26. Rb2 {[%clk
00:05:43]} {[%emt 00:00:19]} Kf8 {[%clk 00:03:36]} {[%emt 00:00:24]} 27. Rd1
{[%clk 00:04:36]} {[%emt 00:01:11]} Re7 {[%clk 00:03:28]} {[%emt 00:00:11]} 28.
Bc4 {[%clk 00:04:26]} {[%emt 00:00:12]} Bxc4 {[%clk 00:02:14]} {[%emt
00:01:17]} 29. Kxc4 {[%clk 00:04:22]} {[%emt 00:00:08]} Re3 {[%clk 00:02:12]}
{[%emt 00:00:05]} 30. Rd3 {[%clk 00:04:12]} {[%emt 00:00:13]} Rxd3 {[%clk
00:01:54]} {[%emt 00:00:21]} 31. Kxd3 {[%clk 00:04:13]} {[%emt 00:00:01]} Ke7
{[%clk 00:01:46]} {[%emt 00:00:11]} 32. Kc4 {[%clk 00:04:04]} {[%emt 00:00:12]}
Rb5 {[%clk 00:01:32]} {[%emt 00:00:17]} 33. Re2+ {[%clk 00:03:38]} {[%emt
00:00:29]} Kd7 {[%clk 00:01:33]} {[%emt 00:00:02]} 34. Rd2+ {[%clk 00:03:06]}
{[%emt 00:00:34]} Ke7 {[%clk 00:01:33]} {[%emt 00:00:03]} 35. Rd3 {[%clk
00:01:49]} {[%emt 00:01:20]} h5 {[%clk 00:01:34]} {[%emt 00:00:02]} 36. a4
{[%clk 00:01:23]} {[%emt 00:00:30]} Rf5 {[%clk 00:00:47]} {[%emt 00:00:49]} 37.
g3 {[%clk 00:01:06]} {[%emt 00:00:20]} h4 {[%clk 00:00:26]} {[%emt 00:00:25]}
38. b4 {[%clk 00:01:02]} {[%emt 00:00:07]} hxg3 {[%clk 00:00:21]} {[%emt
00:00:07]} 39. hxg3 {[%clk 00:01:01]} {[%emt 00:00:04]} axb4 {[%clk 00:00:17]}
{[%emt 00:00:08]} 40. Kxb4 {[%clk 00:01:03]} Re5 {[%clk 00:00:08]} {[%emt
00:00:11]} 41. a5 {[%clk 00:01:01]} {[%emt 00:00:05]} Rb5+ {[%clk 00:00:10]} 42.
Ka4 {[%clk 00:01:00]} {[%emt 00:00:04]} Rb8 {[%clk 00:00:09]} {[%emt 00:00:05]}
43. a6 {[%clk 00:00:57]} {[%emt 00:00:07]} c5 {[%clk 00:00:12]} 44. Ka5 {[%clk
00:00:46]} {[%emt 00:00:13]} c4 {[%clk 00:00:05]} {[%emt 00:00:10]} 45. Rc3
{[%clk 00:00:43]} {[%emt 00:00:06]} Rc8 {[%clk 00:00:08]} 46. Kb6 {[%clk
00:00:33]} {[%emt 00:00:12]} Kd6 {[%emt 00:00:06]} 47. a7 {[%clk 00:00:23]}
{[%emt 00:00:13]} Kd5 {[%clk 00:00:00]} {[%emt 00:00:06]} 1-0

[ePGN "0.1;DGT LiveChess/2.2.4"]

[Event "1st Rapid Chess Tournament Château Montaiguillon"]
[Site "Montagne - Saint Emilion, France"]
[Date "2019.09.08"]
[Round "7.4"]
[White "Lagarde, Maxime"]
[Black "Guichard, Pauline"]
[Result "1-0"]
[TimeControl "12' + 3''"]
[WhiteElo "2599"]
[BlackElo "2409"]

1. b3 {[%clk 00:12:04]} {[%emt 00:00:01]} e5 {[%clk 00:12:02]} {[%emt
00:00:05]} 2. Bb2 {[%clk 00:12:06]} Nc6 {[%clk 00:12:03]} {[%emt 00:00:02]} 3.
e3 {[%clk 00:12:08]} Nf6 {[%clk 00:11:57]} {[%emt 00:00:11]} 4. Bb5 {[%clk
00:12:09]} Bd6 {[%clk 00:11:50]} {[%emt 00:00:10]} 5. Na3 {[%clk 00:12:10]}
{[%emt 00:00:02]} a6 {[%clk 00:11:41]} {[%emt 00:00:12]} 6. Bxc6 {[%clk
00:12:10]} {[%emt 00:00:03]} dxc6 {[%clk 00:11:41]} {[%emt 00:00:03]} 7. Nc4
{[%clk 00:12:12]} {[%emt 00:00:01]} Qe7 {[%clk 00:11:38]} {[%emt 00:00:06]} 8.
Ne2 {[%clk 00:12:00]} {[%emt 00:00:15]} O-O {[%clk 00:11:24]} {[%emt 00:00:17]}
9. O-O {[%clk 00:11:58]} {[%emt 00:00:06]} Bg4 {[%clk 00:11:02]} {[%emt
00:00:25]} 10. f3 {[%clk 00:11:57]} {[%emt 00:00:04]} Bh5 {[%clk 00:10:58]}
{[%emt 00:00:06]} 11. Qe1 {[%clk 00:11:06]} {[%emt 00:00:54]} Bg6 {[%clk
00:10:43]} {[%emt 00:00:19]} 12. f4 {[%clk 00:10:48]} {[%emt 00:00:21]} exf4
{[%clk 00:10:26]} {[%emt 00:00:20]} 13. Nxf4 {[%clk 00:10:48]} {[%emt
00:00:03]} Nd5 {[%clk 00:08:36]} {[%emt 00:01:53]} 14. Nxg6 {[%clk 00:10:32]}
{[%emt 00:00:19]} fxg6 {[%clk 00:08:00]} {[%emt 00:00:39]} 15. Nxd6 {[%clk
00:10:28]} {[%emt 00:00:07]} cxd6 {[%clk 00:08:00]} {[%emt 00:00:03]} 16. Qe2
{[%clk 00:10:10]} {[%emt 00:00:21]} Qe4 {[%clk 00:07:52]} {[%emt 00:00:11]} 17.
Qc4 {[%clk 00:09:58]} {[%emt 00:00:14]} Qxc4 {[%clk 00:05:58]} {[%emt
00:01:57]} 18. bxc4 {[%clk 00:09:59]} {[%emt 00:00:02]} Nf6 {[%clk 00:05:57]}
{[%emt 00:00:05]} 19. a4 {[%clk 00:09:54]} {[%emt 00:00:07]} a5 {[%clk
00:05:04]} {[%emt 00:00:56]} 20. d3 {[%clk 00:09:26]} {[%emt 00:00:31]} Kf7
{[%clk 00:04:34]} {[%emt 00:00:33]} 21. Rab1 {[%clk 00:09:25]} {[%emt
00:00:05]} Rab8 {[%clk 00:03:47]} {[%emt 00:00:50]} 22. e4 {[%clk 00:09:13]}
{[%emt 00:00:14]} Ke6 {[%clk 00:03:41]} {[%emt 00:00:10]} 23. Bc3 {[%clk
00:08:14]} {[%emt 00:01:02]} b6 {[%clk 00:03:39]} {[%emt 00:00:05]} 24. Rf3
{[%clk 00:07:35]} {[%emt 00:00:42]} g5 {[%clk 00:03:29]} {[%emt 00:00:13]} 25.
Rf5 {[%clk 00:07:20]} {[%emt 00:00:18]} h6 {[%clk 00:03:14]} {[%emt 00:00:18]}
26. Rbf1 {[%clk 00:07:21]} {[%emt 00:00:02]} Rb7 {[%clk 00:02:38]} {[%emt
00:00:39]} 27. e5 {[%clk 00:06:53]} {[%emt 00:00:31]} dxe5 {[%clk 00:02:37]}
{[%emt 00:00:04]} 28. Rxe5+ {[%clk 00:06:54]} {[%emt 00:00:01]} Kf7 {[%clk
00:01:55]} {[%emt 00:00:45]} 29. Rb1 {[%clk 00:06:54]} {[%emt 00:00:03]} Rbb8
{[%clk 00:01:43]} {[%emt 00:00:15]} 30. h3 {[%clk 00:06:46]} {[%emt 00:00:12]}
c5 {[%clk 00:01:35]} {[%emt 00:00:11]} 31. g4 {[%clk 00:06:21]} {[%emt
00:00:27]} Rfd8 {[%clk 00:01:12]} {[%emt 00:00:27]} 32. Kg2 {[%clk 00:06:18]}
{[%emt 00:00:06]} Rdc8 {[%clk 00:00:37]} {[%emt 00:00:38]} 33. Kf3 {[%clk
00:05:42]} {[%emt 00:00:39]} Rd8 {[%clk 00:00:37]} {[%emt 00:00:03]} 34. Be1
{[%clk 00:05:29]} {[%emt 00:00:16]} Nd7 {[%clk 00:00:20]} {[%emt 00:00:21]} 35.
Rd5 {[%clk 00:05:29]} {[%emt 00:00:03]} Rbc8 {[%clk 00:00:07]} {[%emt
00:00:16]} 36. Bg3 {[%clk 00:05:25]} {[%emt 00:00:07]} Rc6 {[%clk 00:00:08]}
{[%emt 00:00:02]} 37. Re1 {[%emt 00:00:26]} 1-0

[Event "1st Rapid Chess Tournament Château Montaiguillon"]
[Site "Montagne - Saint Emilion, France"]
[Date "2019.09.08"]
[Round "7.1"]
[White "Moussard, Jules"]
[Black "Estadieu, Romeo"]
[Result "1-0"]
[TimeControl "12' + 3''"]
[WhiteElo "2576"]
[BlackElo "2106"]

1. e4 {[%clk 00:12:03]} {[%emt 00:00:02]} e6 {[%clk 00:12:05]} {[%emt
00:00:02]} 2. d4 {[%clk 00:12:03]} {[%emt 00:00:01]} d5 {[%clk 00:12:07]} 3.
Nc3 {[%clk 00:12:03]} {[%emt 00:00:05]} Nf6 {[%clk 00:12:07]} {[%emt 00:00:06]}
4. e5 {[%clk 00:11:57]} {[%emt 00:00:08]} Nfd7 {[%clk 00:12:09]} {[%emt
00:00:01]} 5. Nce2 {[%clk 00:11:57]} {[%emt 00:00:01]} c5 {[%clk 00:12:07]}
{[%emt 00:00:06]} 6. c3 {[%clk 00:11:59]} {[%emt 00:00:01]} Nc6 {[%clk
00:12:09]} 7. Nf3 {[%clk 00:11:57]} {[%emt 00:00:05]} h6 {[%clk 00:10:06]}
{[%emt 00:02:07]} 8. g3 {[%clk 00:11:44]} {[%emt 00:00:16]} c4 {[%clk
00:09:48]} {[%emt 00:00:22]} 9. h4 {[%clk 00:11:39]} {[%emt 00:00:07]} b5
{[%clk 00:09:49]} {[%emt 00:00:02]} 10. Bh3 {[%clk 00:11:23]} {[%emt 00:00:18]}
Nb6 {[%clk 00:09:42]} {[%emt 00:00:11]} 11. Nf4 {[%clk 00:11:11]} {[%emt
00:00:15]} Bd7 {[%clk 00:09:33]} {[%emt 00:00:14]} 12. O-O {[%clk 00:10:37]}
{[%emt 00:00:36]} a5 {[%clk 00:09:30]} {[%emt 00:00:06]} 13. Be3 {[%clk
00:09:47]} {[%emt 00:00:52]} b4 {[%clk 00:08:46]} {[%emt 00:00:48]} 14. Nd2
{[%clk 00:09:47]} {[%emt 00:00:03]} bxc3 {[%clk 00:08:31]} {[%emt 00:00:19]} 15.
bxc3 {[%clk 00:09:48]} {[%emt 00:00:01]} a4 {[%clk 00:08:28]} {[%emt 00:00:06]}
16. Rb1 {[%clk 00:09:42]} {[%emt 00:00:09]} a3 {[%clk 00:07:44]} {[%emt
00:00:48]} 17. Qc2 {[%clk 00:09:43]} {[%emt 00:00:01]} Be7 {[%clk 00:06:57]}
{[%emt 00:00:50]} 18. Nh5 {[%clk 00:09:24]} {[%emt 00:00:22]} Kf8 {[%clk
00:05:58]} {[%emt 00:01:02]} 19. f4 {[%clk 00:06:58]} {[%emt 00:02:28]} g6
{[%clk 00:05:51]} {[%emt 00:00:10]} 20. Nf6 {[%clk 00:06:59]} {[%emt 00:00:01]}
Bxf6 {[%clk 00:05:50]} {[%emt 00:00:05]} 21. exf6 {[%clk 00:07:01]} Na4 {[%clk
00:05:28]} {[%emt 00:00:25]} 22. Nf3 {[%clk 00:06:08]} {[%emt 00:00:56]} Qa5
{[%clk 00:04:30]} {[%emt 00:01:01]} 23. Bd2 {[%clk 00:05:10]} {[%emt 00:01:00]}
Nb2 {[%clk 00:04:28]} {[%emt 00:00:06]} 24. h5 {[%clk 00:05:09]} {[%emt
00:00:04]} Qa4 {[%clk 00:04:02]} {[%emt 00:00:29]} 25. Ne1 {[%clk 00:04:33]}
{[%emt 00:00:38]} gxh5 {[%clk 00:02:06]} {[%emt 00:02:00]} 26. f5 {[%clk
00:04:35]} {[%emt 00:00:01]} Qxc2 {[%clk 00:00:43]} {[%emt 00:01:26]} 27. Nxc2
{[%clk 00:04:36]} {[%emt 00:00:01]} Nd3 {[%clk 00:00:38]} {[%emt 00:00:07]} 28.
Rb7 {[%clk 00:04:22]} {[%emt 00:00:17]} Ra7 {[%clk 00:00:15]} {[%emt 00:00:27]}
29. Rfb1 {[%clk 00:04:21]} {[%emt 00:00:04]} Ke8 {[%clk 00:00:08]} {[%emt
00:00:10]} 30. Rb8+ {[%clk 00:04:15]} {[%emt 00:00:09]} Nd8 {[%clk 00:00:08]}
{[%emt 00:00:04]} 31. Kh2 {[%clk 00:03:49]} {[%emt 00:00:28]} Rg8 {[%clk
00:00:05]} {[%emt 00:00:06]} 32. Bxh6 {[%clk 00:03:51]} {[%emt 00:00:01]} Rh8
{[%clk 00:00:04]} {[%emt 00:00:04]} 33. Bg5 {[%clk 00:03:13]} {[%emt 00:00:41]}
exf5 {[%clk 00:00:04]} {[%emt 00:00:04]} 34. Ne3 {[%emt 00:00:09]} Be6 35. Bxf5
{[%emt 00:00:45]} Kd7 36. Bxe6+ {[%clk 00:02:19]} {[%emt 00:00:08]} fxe6 {[%clk
00:00:11]} {[%emt 00:00:01]} 37. R1b6 {[%clk 00:01:46]} {[%emt 00:00:36]} Rf8
{[%clk 00:00:07]} {[%emt 00:00:07]} 38. Ng2 {[%clk 00:01:36]} {[%emt 00:00:13]}
Rg8 {[%clk 00:00:05]} {[%emt 00:00:05]} 39. f7 {[%clk 00:01:32]} {[%emt
00:00:06]} 1-0